[Event "106th British-ch Major 2019"]
[Site "Torquay"]
[Date "2019.08.02"]
[Round "7.21"]
[White "Salmons, Calum"]
[Black "Ifalore, Michael"]
[Result "0-1"]
[ECO "C55"]
[WhiteElo "1898"]
[BlackElo "1907"]
[Annotator "NA"]
[PlyCount "86"]
[EventDate "2019.07.27"]
[EventType "swiss"]
[EventCountry "GBR"]
[SourceTitle "playchess.com"]
[Source "ChessBase"]
[SourceQuality "1"]
[TimeControl "40/5400+30:1800+30"]

1. e4 {[%emt 0:00:00]} e5 {[%emt 0:00:00]} 2. Nf3 {[%emt 0:00:00]} Nc6 {[%emt 0:00:00]} 3. Bc4 {[%emt 0:00:00]} Nf6 {[%emt 0:00:00]} 4. d3 {[%emt 0:00:00]} Be7 {[%emt 0:00:00]} 5. c3 {[%emt 0:00:17]} O-O {[%emt 0:00:00]} 6. O-O {[%emt 0:00:06]} d6 {[%emt 0:00:00]} 7. Bb3 {[%emt 0:00:48]} Na5 {[%emt 0:00:00]} 8. Bc2 {[%emt 0:00:26]} c5 {[%emt 0:00:02]} 9. Nbd2 {[%emt 0:01:00]} Re8 {[%emt 0:02:50]} 10. Re1 {[%emt 0:00:22]} Nc6 {[%emt 0:04:08]} 11. Nf1 {[%emt 0:05:28]} h6 {[%emt 0:04:20]} 12. Ng3 {[%emt 0:02:18]} Bf8 {[%emt 0:01:10]} 13. c4 {[%emt 0:04:10]} Bg4 {[%emt 0:06:35]} 14. Ba4 {[%emt 0:04:57]} Qa5 {[%emt 0:07:09]} 15. Bd2 {[%emt 0:07:41]} Bxf3 {[%emt 0:08:28]} 16. Bxa5 {[%emt 0:00:24]} Bxd1 {[%emt 0:00:03]} 17. Bxc6 {[%emt 0:00:09]} bxc6 {[%emt 0:00:03]} 18. Rexd1 {[%emt 0:00:30]} Rab8 {[%emt 0:00:10]} 19. b3 {[%emt 0:04:53]} Rb7 {[%emt 0:00:58]} 20. Rac1 {[%emt 0:01:08]} g6 {[%emt 0:00:29]} 21. Rc2 {[%emt 0:00:55]} h5 {[%emt 0:00:15]} 22. Bd2 {[%emt 0:01:23]} Kh7 {[%emt 0:01:55]} 23. Bg5 {[%emt 0:02:26]} Nd7 {[%emt 0:01:49]} 24. Nf1 {[%emt 0:04:01]} f6 {[%emt 0:00:16]} 25. Be3 {[%emt 0:02:39]} Bh6 {[%emt 0:00:10]} 26. g3 {[%emt 0:01:33]} Nf8 {[%emt 0:04:03]} 27. Bxh6 {[%emt 0:01:02]} Kxh6 {[%emt 0:00:05]} 28. f4 {[%emt 0:00:18]} Ne6 {[%emt 0:03:52]} 29. Rf2 {[%emt 0:01:37]} exf4 {[%emt 0:02:11]} 30. gxf4 {[%emt 0:00:06]} Nd4 {[%emt 0:00:15]} 31. Nd2 {[%emt 0:10:53]} Rbe7 {[%emt 0:02:47]} 32. Nf3 {[%emt 0:03:30]} Nxf3+ {[%emt 0:00:07]} 33. Rxf3 {[%emt 0:00:06]} f5 {[%emt 0:00:13]} 34. exf5 {[%emt 0:02:33]} gxf5 {[%emt 0:00:06]} 35. Rd2 {[%emt 0:00:38]} h4 {[%emt 0:08:05]} 36. h3 {[%emt 0:00:49]} Re3 {[%emt 0:01:45]} 37. Kf2 {[%emt 0:01:42]} Re1 {[%emt 0:01:24]} 38. Kg2 {[%emt 0:06:14]} Rg8+ {[%emt 0:00:48]} 39. Kf2 {[%emt 0:01:04]} Reg1 {[%emt 0:01:56]} 40. Re2 {[%emt 0:02:11]} d5 {[%emt 0:07:06]} 41. Re6+ {[%emt 0:39:02]} Kh5 {[%emt 0:30:08]} 42. Rfe3 {[%emt 0:07:45]} R8g2+ {[%emt 0:00:11]} 43. Kf3 {[%emt 0:00:09]} Rh2 {[%emt 0:00:38]} 0-1

[Event "106th British-ch Major 2019"]
[Site "Torquay"]
[Date "2019.08.02"]
[Round "7.22"]
[White "Robertson, Jim"]
[Black "Nayak, Raghav"]
[Result "0-1"]
[ECO "A45"]
[WhiteElo "1580"]
[BlackElo "1906"]
[Annotator "NA"]
[PlyCount "94"]
[EventDate "2019.07.27"]
[EventType "swiss"]
[EventCountry "GBR"]
[SourceTitle "playchess.com"]
[Source "ChessBase"]
[SourceQuality "1"]
[TimeControl "40/5400+30:1800+30"]

1. d4 {[%emt 0:00:00]} Nf6 {[%emt 0:03:01]} 2. e3 {[%emt 0:00:00]} g6 {[%emt 0:00:10]} 3. f4 {[%emt 0:00:00]} Bg7 {[%emt 0:00:13]} 4. Nf3 {[%emt 0:00:00]} O-O {[%emt 0:00:06]} 5. c3 {[%emt 0:00:01]} d6 {[%emt 0:00:11]} 6. Bc4 {[%emt 0:00:29]} c5 {[%emt 0:00:31]} 7. O-O {[%emt 0:00:10]} Qc7 {[%emt 0:00:15]} 8. Qe2 {[%emt 0:02:26]} Nc6 {[%emt 0:00:46]} 9. Na3 {[%emt 0:01:30]} a6 {[%emt 0:01:06]} 10. dxc5 {[%emt 0:03:56]} dxc5 {[%emt 0:00:56]} 11. e4 {[%emt 0:03:07]} e5 {[%emt 0:03:15]} 12. fxe5 {[%emt 0:14:40]} Nxe5 {[%emt 0:02:36]} 13. Bf4 {[%emt 0:06:06]} Nfg4 {[%emt 0:05:07]} 14. Ng5 {[%emt 0:11:41]} Qe7 {[%emt 0:02:40]} 15. h3 {[%emt 0:08:06]} Nf6 {[%emt 0:06:35]} 16. Rad1 {[%emt 0:09:53]} b5 {[%emt 0:02:13]} 17. Bd5 {[%emt 0:08:01]} Ra7 {[%emt 0:01:43]} 18. c4 {[%emt 0:03:05]} b4 {[%emt 0:04:43]} 19. Nc2 {[%emt 0:01:07]} Nh5 {[%emt 0:10:02]} 20. Qe3 {[%emt 0:05:39]} h6 {[%emt 0:05:27]} 21. Nf3 {[%emt 0:01:38]} Nxf4 {[%emt 0:00:19]} 22. Qxf4 {[%emt 0:00:20]} Kh7 {[%emt 0:03:38]} 23. Nce1 {[%emt 0:01:21]} f5 {[%emt 0:10:33]} 24. Nd3 {[%emt 0:01:35]} g5 {[%emt 0:04:28]} 25. Qe3 {[%emt 0:01:07]} Nxf3+ {[%emt 0:08:59]} 26. Qxf3 {[%emt 0:01:07]} Bd4+ {[%emt 0:05:31]} 27. Kh1 {[%emt 0:00:15]} g4 {[%emt 0:01:33]} 28. hxg4 {[%emt 0:01:11]} fxg4 {[%emt 0:00:13]} 29. Qg3 {[%emt 0:01:30]} h5 {[%emt 0:04:59]} 30. Rxf8 {[%emt 0:01:49]} Qxf8 {[%emt 0:00:01]} 31. Qf4 {[%emt 0:00:59]} Qe7 {[%emt 0:02:09]} 32. g3 {[%emt 0:02:12]} Bf6 {[%emt 0:05:00]} 33. e5 {[%emt 0:01:07]} Bg5 {[%emt 0:00:25]} 34. Qe4+ {[%emt 0:00:53]} Kg7 {[%emt 0:01:18]} 35. Rf1 {[%emt 0:02:26]} Be6 {[%emt 0:01:08]} 36. Bxe6 {[%emt 0:00:54]} Qxe6 {[%emt 0:01:00]} 37. Nxc5 {[%emt 0:00:15]} Qe7 {[%emt 0:01:24]} 38. e6 {[%emt 0:01:26]} Qxc5 {[%emt 0:01:04]} 39. Rf5 {[%emt 0:01:12]} Qe3 {[%emt 0:03:04]} 40. Rxg5+ {[%emt 0:02:48]} Qxg5 {[%emt 0:00:50]} 41. Qd4+ {[%emt 0:31:24]} Kg6 {[%emt 0:19:21]} 42. Qxa7 {[%emt 0:00:00]} Qc1+ {[%emt 0:01:36]} 43. Kg2 {[%emt 0:00:00]} Qxb2+ {[%emt 0:00:47]} 44. Qf2 {[%emt 0:00:00]} Qxf2+ {[%emt 0:01:23]} 45. Kxf2 {[%emt 0:00:00]} Kf6 {[%emt 0:00:08]} 46. Ke3 {[%emt 0:00:00]} Kxe6 {[%emt 0:00:03]} 47. Kf4 {[%emt 0:00:00]} a5 {[%emt 0:00:09] Ke5+ Kxe5} 0-1

[Event "106th British-ch Major 2019"]
[Site "Torquay"]
[Date "2019.08.02"]
[Round "7.23"]
[White "Young, Daniel J"]
[Black "Tombolis, Christopher"]
[Result "1/2-1/2"]
[ECO "B31"]
[WhiteElo "1971"]
[BlackElo "1883"]
[Annotator "NA"]
[PlyCount "60"]
[EventDate "2019.07.27"]
[EventType "swiss"]
[EventCountry "GBR"]
[SourceTitle "playchess.com"]
[Source "ChessBase"]
[SourceQuality "1"]
[TimeControl "40/5400+30:1800+30"]

1. e4 {[%emt 0:00:00]} c5 {[%emt 0:00:00]} 2. Nf3 {[%emt 0:00:00]} Nc6 {[%emt 0:00:00]} 3. Bb5 {[%emt 0:00:00]} g6 {[%emt 0:00:04]} 4. Bxc6 {[%emt 0:00:00]} dxc6 {[%emt 0:00:17]} 5. d3 {[%emt 0:00:10]} Bg7 {[%emt 0:00:06]} 6. h3 {[%emt 0:00:11]} e5 {[%emt 0:00:05]} 7. a4 {[%emt 0:00:52]} Qe7 {[%emt 0:02:07]} 8. a5 {[%emt 0:01:36]} Nf6 {[%emt 0:00:30]} 9. Nbd2 {[%emt 0:01:55]} Nd7 {[%emt 0:00:49]} 10. O-O {[%emt 0:00:50]} Nf8 {[%emt 0:00:08]} 11. Nc4 {[%emt 0:00:17]} f6 {[%emt 0:00:20]} 12. Be3 {[%emt 0:01:50]} Ne6 {[%emt 0:01:16]} 13. c3 {[%emt 0:00:49]} O-O {[%emt 0:00:23]} 14. Rb1 {[%emt 0:04:15]} Rd8 {[%emt 0:04:32]} 15. Qc2 {[%emt 0:01:57]} g5 {[%emt 0:03:20]} 16. b4 {[%emt 0:02:30]} cxb4 {[%emt 0:01:17]} 17. cxb4 {[%emt 0:02:44]} h5 {[%emt 0:07:46]} 18. g4 {[%emt 0:14:34]} Qf7 {[%emt 0:05:00]} 19. Rfd1 {[%emt 0:03:31]} Qg6 {[%emt 0:09:28]} 20. d4 {[%emt 0:11:08]} hxg4 {[%emt 0:01:52]} 21. hxg4 {[%emt 0:01:32]} Nf4 {[%emt 0:03:20]} 22. Nh2 {[%emt 0:04:15]} exd4 {[%emt 0:03:40]} 23. Rxd4 {[%emt 0:01:54]} Rxd4 {[%emt 0:00:16]} 24. Bxd4 {[%emt 0:00:08]} Be6 {[%emt 0:15:40]} 25. Nd6 {[%emt 0:03:57]} Rd8 {[%emt 0:05:43]} 26. Nf5 {[%emt 0:01:37]} Bxf5 {[%emt 0:00:20]} 27. exf5 {[%emt 0:00:11]} Qe8 {[%emt 0:05:22]} 28. Be3 {[%emt 0:02:08]} Qe5 {[%emt 0:01:31]} 29. Qc4+ {[%emt 0:01:12]} Nd5 {[%emt 0:00:32]} 30. Nf3 {[%emt 0:04:34]} Qb8 {[%emt 0:01:36]} 1/2-1/2

[Event "106th British-ch Major 2019"]
[Site "Torquay"]
[Date "2019.08.02"]
[Round "7.24"]
[White "Mueller, Jens"]
[Black "Roy, Ali"]
[Result "1/2-1/2"]
[ECO "D02"]
[WhiteElo "1965"]
[BlackElo "1871"]
[Annotator "NA"]
[PlyCount "60"]
[EventDate "2019.07.27"]
[EventType "swiss"]
[EventCountry "GBR"]
[SourceTitle "playchess.com"]
[Source "ChessBase"]
[SourceQuality "1"]
[TimeControl "40/5400+30:1800+30"]

1. d4 {[%emt 0:00:00]} Nf6 {[%emt 0:00:00]} 2. Bf4 {[%emt 0:00:00]} d5 {[%emt 0:00:00]} 3. e3 {[%emt 0:00:16]} e6 {[%emt 0:00:03]} 4. Nd2 {[%emt 0:00:56]} c5 {[%emt 0:00:13]} 5. c3 {[%emt 0:00:43]} Bd6 {[%emt 0:04:01]} 6. Bg3 {[%emt 0:01:17]} O-O {[%emt 0:01:43]} 7. Ngf3 {[%emt 0:00:36]} b6 {[%emt 0:01:55]} 8. Ne5 {[%emt 0:03:00]} Bb7 {[%emt 0:02:48]} 9. Bd3 {[%emt 0:01:23]} Nc6 {[%emt 0:01:09]} 10. Qb1 {[%emt 0:17:07]} Qc7 {[%emt 0:04:44]} 11. f4 {[%emt 0:11:01]} h6 {[%emt 0:16:53]} 12. O-O {[%emt 0:08:30]} a5 {[%emt 0:02:16]} 13. Bh4 {[%emt 0:07:28]} Be7 {[%emt 0:07:41]} 14. Qe1 {[%emt 0:06:32]} Ba6 {[%emt 0:02:00]} 15. Bxa6 {[%emt 0:01:36]} Rxa6 {[%emt 0:00:04]} 16. Bxf6 {[%emt 0:05:20]} Bxf6 {[%emt 0:00:44]} 17. Ng4 {[%emt 0:00:26]} Qe7 {[%emt 0:02:44]} 18. Rf3 {[%emt 0:00:32]} h5 {[%emt 0:07:47]} 19. Nxf6+ {[%emt 0:00:18]} Qxf6 {[%emt 0:00:18]} 20. Rg3 {[%emt 0:00:41]} cxd4 {[%emt 0:02:39]} 21. cxd4 {[%emt 0:02:31]} Rc8 {[%emt 0:03:41]} 22. Qe2 {[%emt 0:00:25]} Raa8 {[%emt 0:04:20]} 23. Qxh5 {[%emt 0:01:41]} g6 {[%emt 0:01:23]} 24. Qh6 {[%emt 0:00:21]} Nxd4 {[%emt 0:02:07]} 25. exd4 {[%emt 0:05:15]} Qxd4+ {[%emt 0:00:13]} 26. Kh1 {[%emt 0:00:22]} Qxd2 {[%emt 0:00:47]} 27. Rxg6+ {[%emt 0:00:16]} fxg6 {[%emt 0:00:10]} 28. Qxg6+ {[%emt 0:00:06]} Kh8 {[%emt 0:02:19]} 29. Qh6+ {[%emt 0:00:07]} Kg8 {[%emt 0:00:04]} 30. Qg6+ {[%emt 0:00:06]} Kh8 {[%emt 0:00:10]} 1/2-1/2

[Event "106th British-ch Major 2019"]
[Site "Torquay"]
[Date "2019.08.02"]
[Round "7.25"]
[White "Fathallah, Joe"]
[Black "Wilson, Matthew R"]
[Result "0-1"]
[ECO "D36"]
[WhiteElo "1952"]
[BlackElo "1817"]
[Annotator "NA"]
[PlyCount "92"]
[EventDate "2019.07.27"]
[EventType "swiss"]
[EventCountry "GBR"]
[SourceTitle "playchess.com"]
[Source "ChessBase"]
[SourceQuality "1"]
[TimeControl "40/5400+30:1800+30"]

1. d4 {[%emt 0:00:00]} d5 {[%emt 0:00:00]} 2. c4 {[%emt 0:00:00]} e6 {[%emt 0:00:00]} 3. Nc3 {[%emt 0:00:00]} Nf6 {[%emt 0:00:00]} 4. cxd5 {[%emt 0:00:00]} exd5 {[%emt 0:00:00]} 5. Bg5 {[%emt 0:00:00]} c6 {[%emt 0:00:00]} 6. e3 {[%emt 0:00:08]} h6 {[%emt 0:00:05]} 7. Bh4 {[%emt 0:00:06]} Be7 {[%emt 0:00:04]} 8. Bd3 {[%emt 0:00:07]} Nbd7 {[%emt 0:00:26]} 9. Qc2 {[%emt 0:00:22]} Nh5 {[%emt 0:00:14]} 10. Bxe7 {[%emt 0:00:31]} Qxe7 {[%emt 0:00:06]} 11. Nge2 {[%emt 0:00:10]} Nb6 {[%emt 0:00:15]} 12. h3 {[%emt 0:03:50]} Be6 {[%emt 0:00:19]} 13. g4 {[%emt 0:06:03]} Nf6 {[%emt 0:00:48]} 14. Nf4 {[%emt 0:03:26]} O-O-O {[%emt 0:02:23]} 15. Nxe6 {[%emt 0:05:28]} fxe6 {[%emt 0:00:31]} 16. O-O-O {[%emt 0:02:37]} e5 {[%emt 0:03:17]} 17. Bf5+ {[%emt 0:01:10]} Kb8 {[%emt 0:01:04]} 18. Na4 {[%emt 0:04:29]} Nxa4 {[%emt 0:03:45]} 19. Qxa4 {[%emt 0:00:07]} e4 {[%emt 0:04:54]} 20. Kb1 {[%emt 0:01:55]} Qf7 {[%emt 0:05:49]} 21. g5 {[%emt 0:03:40]} hxg5 {[%emt 0:03:42]} 22. Rdg1 {[%emt 0:06:13]} g6 {[%emt 0:03:14]} 23. Bg4 {[%emt 0:00:08]} Nxg4 {[%emt 0:01:21]} 24. Rxg4 {[%emt 0:00:32]} Qxf2 {[%emt 0:00:58]} 25. Rxg5 {[%emt 0:03:54]} Rxh3 {[%emt 0:08:09]} 26. Rhg1 {[%emt 0:14:20]} Rxe3 {[%emt 0:17:25]} 27. Qb4 {[%emt 0:02:54]} Rd3 {[%emt 0:11:40]} 28. Qe7 {[%emt 0:05:48]} Rf8 {[%emt 0:07:09]} 29. Qd6+ {[%emt 0:08:30]} Ka8 {[%emt 0:00:27]} 30. R5g2 {[%emt 0:06:01]} Qf6 {[%emt 0:02:15]} 31. Qc5 {[%emt 0:03:41]} b6 {[%emt 0:02:04]} 32. Qc1 {[%emt 0:01:56]} Rxd4 {[%emt 0:08:12]} 33. Rxg6 {[%emt 0:00:55]} Rc4 {[%emt 0:00:23]} 34. Qd1 {[%emt 0:04:05]} Qf3 {[%emt 0:01:04]} 35. Qe1 {[%emt 0:01:06]} Qf2 {[%emt 0:06:31]} 36. Qxf2 {[%emt 0:02:56]} Rxf2 {[%emt 0:00:05]} 37. Rg7 {[%emt 0:00:05]} Rcc2 {[%emt 0:04:01]} 38. Rc7 {[%emt 0:05:31]} Rxb2+ {[%emt 0:02:01]} 39. Kc1 {[%emt 0:00:08]} Rfc2+ {[%emt 0:01:46]} 40. Kd1 {[%emt 0:00:08]} Rg2 {[%emt 0:01:07]} 41. Rxg2 {[%emt 0:30:52]} Rxg2 {[%emt 0:31:09]} 42. Rxc6 {[%emt 0:00:31]} Rxa2 {[%emt 0:00:42]} 43. Re6 {[%emt 0:00:21]} Kb7 {[%emt 0:00:49]} 44. Kc1 {[%emt 0:00:24]} Ra3 {[%emt 0:00:00]} 45. Kb2 {[%emt 0:00:00]} Rd3 {[%emt 0:00:00]} 46. Ka2 {[%emt 0:00:00]} e3 {[%emt 0:00:00]} 0-1

[Event "106th British-ch Major 2019"]
[Site "Torquay"]
[Date "2019.08.02"]
[Round "7.26"]
[White "Pink, Joshua"]
[Black "Howell, Oliver W"]
[Result "1/2-1/2"]
[ECO "C01"]
[WhiteElo "1907"]
[BlackElo "1797"]
[Annotator "NA"]
[PlyCount "39"]
[EventDate "2019.07.27"]
[EventType "swiss"]
[EventCountry "GBR"]
[SourceTitle "playchess.com"]
[Source "ChessBase"]
[SourceQuality "1"]
[TimeControl "40/5400+30:1800+30"]

1. e4 {[%emt 0:03:18]} e6 {[%emt 0:00:00]} 2. d4 {[%emt 0:00:06]} d5 {[%emt 0:00:00]} 3. exd5 {[%emt 0:00:06]} exd5 {[%emt 0:00:09]} 4. Bf4 {[%emt 0:00:08]} Bd6 {[%emt 0:02:48]} 5. Bxd6 {[%emt 0:01:23]} Qxd6 {[%emt 0:00:18]} 6. Bd3 {[%emt 0:00:27]} Ne7 {[%emt 0:02:14]} 7. c3 {[%emt 0:01:37]} Bf5 {[%emt 0:01:52]} 8. Bxf5 {[%emt 0:00:44]} Nxf5 {[%emt 0:00:13]} 9. Nf3 {[%emt 0:00:16]} Qe6+ {[%emt 0:05:08]} 10. Qe2 {[%emt 0:00:53]} Qxe2+ {[%emt 0:00:16]} 11. Kxe2 {[%emt 0:00:08]} Nd7 {[%emt 0:02:13]} 12. Re1 {[%emt 0:00:30]} O-O {[%emt 0:01:31]} 13. Nbd2 {[%emt 0:00:25]} f6 {[%emt 0:02:03]} 14. Kd3 {[%emt 0:03:21]} Rfe8 {[%emt 0:02:48]} 15. g4 {[%emt 0:04:47]} Nd6 {[%emt 0:01:42]} 16. g5 {[%emt 0:00:20]} Kf7 {[%emt 0:11:43]} 17. gxf6 {[%emt 0:00:39]} gxf6 {[%emt 0:00:16]} 18. b3 {[%emt 0:07:15]} Rxe1 {[%emt 0:17:34]} 19. Rxe1 {[%emt 0:00:34]} Re8 {[%emt 0:02:46]} 20. Rxe8 {[%emt 0:05:45]} 1/2-1/2

[Event "106th British-ch Major 2019"]
[Site "Torquay"]
[Date "2019.08.02"]
[Round "7.27"]
[White "Lovell, William Pm"]
[Black "Ruane, Brendan J"]
[Result "1/2-1/2"]
[ECO "A34"]
[WhiteElo "1777"]
[BlackElo "1904"]
[Annotator "NA"]
[PlyCount "47"]
[EventDate "2019.07.27"]
[EventType "swiss"]
[EventCountry "GBR"]
[SourceTitle "playchess.com"]
[Source "ChessBase"]
[SourceQuality "1"]
[TimeControl "40/5400+30:1800+30"]

1. c4 {[%emt 0:00:00]} b6 {[%emt 0:00:00]} 2. Nc3 {[%emt 0:00:00]} c5 {[%emt 0:00:17]} 3. e4 {[%emt 0:00:00]} Nc6 {[%emt 0:00:26]} 4. g3 {[%emt 0:02:29]} g6 {[%emt 0:00:28]} 5. Bg2 {[%emt 0:00:26]} Bg7 {[%emt 0:00:20]} 6. Nge2 {[%emt 0:00:18]} Rb8 {[%emt 0:00:59]} 7. d3 {[%emt 0:01:08]} d6 {[%emt 0:01:19]} 8. Be3 {[%emt 0:04:31]} Bd7 {[%emt 0:05:56]} 9. Rb1 {[%emt 0:01:26]} Nf6 {[%emt 0:07:13]} 10. h3 {[%emt 0:04:51]} O-O {[%emt 0:02:06]} 11. O-O {[%emt 0:00:14]} Ne8 {[%emt 0:03:46]} 12. d4 {[%emt 0:03:24]} Nc7 {[%emt 0:07:13]} 13. a4 {[%emt 0:01:13]} f5 {[%emt 0:05:11]} 14. exf5 {[%emt 0:07:54]} cxd4 {[%emt 0:00:22]} 15. Nxd4 {[%emt 0:01:34]} Nxd4 {[%emt 0:02:29]} 16. Bxd4 {[%emt 0:00:09]} Bxf5 {[%emt 0:00:49]} 17. Bxg7 {[%emt 0:01:17]} Kxg7 {[%emt 0:00:27]} 18. Rc1 {[%emt 0:00:20]} Bc8 {[%emt 0:04:45]} 19. b3 {[%emt 0:03:33]} Bb7 {[%emt 0:02:56]} 20. Qe2 {[%emt 0:05:33]} Bxg2 {[%emt 0:00:29]} 21. Kxg2 {[%emt 0:00:49]} e5 {[%emt 0:01:20]} 22. Rcd1 {[%emt 0:04:57]} Ne6 {[%emt 0:05:01]} 23. Nb5 {[%emt 0:02:08]} Qf6 {[%emt 0:07:34]} 24. Rd5 {[%emt 0:15:23]} 1/2-1/2

[Event "106th British-ch Major 2019"]
[Site "Torquay"]
[Date "2019.08.02"]
[Round "7.28"]
[White "Liu, Jack"]
[Black "Whitehead, Mark A"]
[Result "1/2-1/2"]
[ECO "B99"]
[WhiteElo "1259"]
[BlackElo "1887"]
[Annotator "NA"]
[PlyCount "62"]
[EventDate "2019.07.27"]
[EventType "swiss"]
[EventCountry "GBR"]
[SourceTitle "playchess.com"]
[Source "ChessBase"]
[SourceQuality "1"]
[TimeControl "40/5400+30:1800+30"]

1. e4 {[%emt 0:00:00]} c5 {[%emt 0:00:00]} 2. Nf3 {[%emt 0:00:00]} e6 {[%emt 0:00:00]} 3. d4 {[%emt 0:00:00]} cxd4 {[%emt 0:00:06]} 4. Nxd4 {[%emt 0:00:00]} Nf6 {[%emt 0:03:47]} 5. Nc3 {[%emt 0:00:00]} d6 {[%emt 0:00:08]} 6. Bg5 {[%emt 0:06:49]} Be7 {[%emt 0:04:42]} 7. f4 {[%emt 0:01:13]} Nbd7 {[%emt 0:00:43]} 8. Qf3 {[%emt 0:00:56]} a6 {[%emt 0:04:37]} 9. O-O-O {[%emt 0:02:00]} Qc7 {[%emt 0:01:13]} 10. f5 {[%emt 0:18:20]} Ne5 {[%emt 0:06:43]} 11. Qg3 {[%emt 0:04:56]} b5 {[%emt 0:03:44]} 12. Bxf6 {[%emt 0:15:56]} Bxf6 {[%emt 0:02:05]} 13. fxe6 {[%emt 0:00:40]} fxe6 {[%emt 0:00:41]} 14. Be2 {[%emt 0:06:33]} O-O {[%emt 0:02:00]} 15. h4 {[%emt 0:05:56]} b4 {[%emt 0:03:55]} 16. Nb1 {[%emt 0:05:55]} Bd7 {[%emt 0:05:50]} 17. Qb3 {[%emt 0:01:10]} Rfe8 {[%emt 0:05:24]} 18. g4 {[%emt 0:01:28]} Qc5 {[%emt 0:02:22]} 19. g5 {[%emt 0:02:14]} Bd8 {[%emt 0:00:13]} 20. Nf5 {[%emt 0:16:11]} Bc7 {[%emt 0:01:37]} 21. Rdf1 {[%emt 0:02:16]} Kh8 {[%emt 0:03:38]} 22. Ng3 {[%emt 0:05:14]} a5 {[%emt 0:00:41]} 23. a4 {[%emt 0:01:23]} bxa3 {[%emt 0:04:44]} 24. Qxa3 {[%emt 0:00:33]} Bb6 {[%emt 0:01:36]} 25. Qxc5 {[%emt 0:00:10]} Bxc5 {[%emt 0:00:09]} 26. Nc3 {[%emt 0:00:23]} Rf8 {[%emt 0:02:13]} 27. Bb5 {[%emt 0:01:41]} Kg8 {[%emt 0:02:33]} 28. Bxd7 {[%emt 0:00:31]} Nxd7 {[%emt 0:00:08]} 29. Nb5 {[%emt 0:00:31]} Rxf1+ {[%emt 0:06:35]} 30. Rxf1 {[%emt 0:00:20]} Nf8 {[%emt 0:00:09]} 31. Ne2 {[%emt 0:00:15]} Rb8 {[%emt 0:03:13]} 1/2-1/2

[Event "106th British-ch Major 2019"]
[Site "Torquay"]
[Date "2019.08.02"]
[Round "7.29"]
[White "Garnett, John S"]
[Black "Gray, Edward"]
[Result "1/2-1/2"]
[ECO "D00"]
[WhiteElo "1885"]
[BlackElo "1757"]
[Annotator "NA"]
[PlyCount "42"]
[EventDate "2019.07.27"]
[EventType "swiss"]
[EventCountry "GBR"]
[SourceTitle "playchess.com"]
[Source "ChessBase"]
[SourceQuality "1"]
[TimeControl "40/5400+30:1800+30"]

1. d4 {[%emt 0:00:00]} Nf6 {[%emt 0:00:00]} 2. Bg5 {[%emt 0:00:00]} d5 {[%emt 0:00:00]} 3. Bxf6 {[%emt 0:00:00]} gxf6 {[%emt 0:00:04]} 4. c4 {[%emt 0:00:16]} c5 {[%emt 0:01:12]} 5. cxd5 {[%emt 0:00:53]} Qxd5 {[%emt 0:03:42]} 6. Nf3 {[%emt 0:01:06]} cxd4 {[%emt 0:00:40]} 7. Nc3 {[%emt 0:01:33]} Qd8 {[%emt 0:00:10]} 8. Nxd4 {[%emt 0:01:15]} e5 {[%emt 0:00:21]} 9. Ndb5 {[%emt 0:05:10]} a6 {[%emt 0:10:32]} 10. Qxd8+ {[%emt 0:02:55]} Kxd8 {[%emt 0:00:09]} 11. Rd1+ {[%emt 0:03:10]} Nd7 {[%emt 0:01:57]} 12. Nd6 {[%emt 0:01:03]} Bxd6 {[%emt 0:00:46]} 13. Rxd6 {[%emt 0:00:08]} Ke7 {[%emt 0:00:16]} 14. Rd2 {[%emt 0:01:15]} Nb6 {[%emt 0:00:30]} 15. e3 {[%emt 0:01:52]} Be6 {[%emt 0:00:40]} 16. Be2 {[%emt 0:02:13]} Rad8 {[%emt 0:03:47]} 17. Bf3 {[%emt 0:06:44]} Nc4 {[%emt 0:05:39]} 18. Rxd8 {[%emt 0:01:29]} Rxd8 {[%emt 0:00:08]} 19. Bxb7 {[%emt 0:01:36]} Nxb2 {[%emt 0:00:46]} 20. Bxa6 {[%emt 0:02:16]} Bxa2 {[%emt 0:01:54]} 21. O-O {[%emt 0:02:39]} Bc4 {[%emt 0:02:12]} 1/2-1/2

[Event "106th British-ch Major 2019"]
[Site "Torquay"]
[Date "2019.08.02"]
[Round "7.30"]
[White "Kirupakaran, Vishnu"]
[Black "Paulden, Tim"]
[Result "1-0"]
[ECO "B06"]
[WhiteElo "1771"]
[BlackElo "1902"]
[Annotator "NA"]
[PlyCount "83"]
[EventDate "2019.07.27"]
[EventType "swiss"]
[EventCountry "GBR"]
[SourceTitle "playchess.com"]
[Source "ChessBase"]
[SourceQuality "1"]
[TimeControl "40/5400+30:1800+30"]

1. e4 {[%emt 0:00:00]} g6 {[%emt 0:00:00]} 2. d4 {[%emt 0:00:35]} Bg7 {[%emt 0:00:00]} 3. Nf3 {[%emt 0:00:06]} d6 {[%emt 0:00:02]} 4. Bc4 {[%emt 0:00:06]} e6 {[%emt 0:00:27]} 5. O-O {[%emt 0:01:46]} a6 {[%emt 0:00:57]} 6. c3 {[%emt 0:01:42]} Ne7 {[%emt 0:01:32]} 7. Nbd2 {[%emt 0:00:23]} h6 {[%emt 0:02:27]} 8. Re1 {[%emt 0:00:45]} Nd7 {[%emt 0:02:40]} 9. Bb3 {[%emt 0:00:26]} b6 {[%emt 0:01:37]} 10. Nf1 {[%emt 0:00:37]} Bb7 {[%emt 0:00:46]} 11. Ng3 {[%emt 0:00:40]} Qb8 {[%emt 0:07:31]} 12. h4 {[%emt 0:07:29]} Qa7 {[%emt 0:05:51]} 13. a4 {[%emt 0:01:55]} a5 {[%emt 0:06:36]} 14. Be3 {[%emt 0:08:38]} d5 {[%emt 0:09:15]} 15. e5 {[%emt 0:02:13]} c6 {[%emt 0:08:17]} 16. h5 {[%emt 0:04:24]} Nf8 {[%emt 0:13:02]} 17. c4 {[%emt 0:16:42]} Nf5 {[%emt 0:06:46]} 18. hxg6 {[%emt 0:03:39]} fxg6 {[%emt 0:00:53]} 19. Nxf5 {[%emt 0:00:40]} gxf5 {[%emt 0:00:34]} 20. cxd5 {[%emt 0:01:13]} cxd5 {[%emt 0:00:53]} 21. Rc1 {[%emt 0:01:01]} Rc8 {[%emt 0:13:42]} 22. Rxc8+ {[%emt 0:02:28]} Bxc8 {[%emt 0:00:07]} 23. Qc2 {[%emt 0:00:09]} Bd7 {[%emt 0:02:01]} 24. Rc1 {[%emt 0:01:00]} Ng6 {[%emt 0:01:27]} 25. Qc7 {[%emt 0:01:28]} Qxc7 {[%emt 0:01:23]} 26. Rxc7 {[%emt 0:00:03]} Kd8 {[%emt 0:01:01]} 27. Rb7 {[%emt 0:00:34]} Kc8 {[%emt 0:00:15]} 28. Rxb6 {[%emt 0:00:22]} Kc7 {[%emt 0:00:18]} 29. Ra6 {[%emt 0:08:42]} Rb8 {[%emt 0:00:31]} 30. Bxd5 {[%emt 0:01:19]} exd5 {[%emt 0:09:55]} 31. Rxg6 {[%emt 0:00:39]} Bf8 {[%emt 0:00:25]} 32. Bxh6 {[%emt 0:10:11]} Bxh6 {[%emt 0:01:17]} 33. Rxh6 {[%emt 0:00:01]} Bxa4 {[%emt 0:00:55]} 34. Ra6 {[%emt 0:02:33]} Rb5 {[%emt 0:00:45]} 35. b4 {[%emt 0:11:33]} Rxb4 {[%emt 0:02:33]} 36. Rxa5 {[%emt 0:00:04]} Kc6 {[%emt 0:00:32]} 37. Rc5+ {[%emt 0:00:08]} Kb7 {[%emt 0:00:32]} 38. Rxd5 {[%emt 0:00:36]} Bc6 {[%emt 0:00:26]} 39. Rd6 {[%emt 0:00:07]} Be4 {[%emt 0:00:31]} 40. e6 {[%emt 0:02:12]} Kc7 {[%emt 0:00:31]} 41. Rd7+ {[%emt 0:30:26]} Kc8 {[%emt 0:02:25]} 42. Ne5 {[%emt 0:00:00]} 1-0